[Event "Titled Tuesday Blitz December 13 Early 2022"]
[White "Derjabin, Ilja"]
[Black "Lacasa Diaz, Jose Antonio"]
[WhiteFideId "14104768"]
[BlackFideId "2203375"]
[WhiteElo "2309"]
[BlackElo "2338"]
[Result "1-0"]
[Round "11"]
[TimeControl "180+1"]
[Date "2022.12.14"]
[WhiteClock "0:01:06"]
[BlackClock "0:00:03"]

1. d4 {[%clk 0:02:53]}  d5 {[%clk 0:02:59]} 2. c4 {[%clk 0:02:54]}  e6 {[%clk 0:02:59]} 3. Nc3 {[%clk 0:02:54]}  c5 {[%clk 0:02:59]} 4. e3 {[%clk 0:02:54]}  Nc6 {[%clk 0:02:59]} 5. Nf3 {[%clk 0:02:53]}  Nf6 {[%clk 0:02:59]} 6. cxd5 {[%clk 0:02:53]}  exd5 {[%clk 0:02:58]} 7. Be2 {[%clk 0:02:51]}  cxd4 {[%clk 0:02:53]} 8. Nxd4 {[%clk 0:02:51]}  Bd6 {[%clk 0:02:51]} 9. b3 {[%clk 0:02:42]}  O-O {[%clk 0:02:48]} 10. Bb2 {[%clk 0:02:39]}  Re8 {[%clk 0:02:47]} 11. O-O {[%clk 0:02:38]}  a6 {[%clk 0:02:46]} 12. Rc1 {[%clk 0:02:37]}  Bd7 {[%clk 0:02:27]} 13. g3 {[%clk 0:02:35]}  Nxd4 {[%clk 0:02:00]} 14. Qxd4 {[%clk 0:02:34]}  Be5 {[%clk 0:01:59]} 15. Qd2 {[%clk 0:02:31]}  Bh3 {[%clk 0:01:43]} 16. Rfd1 {[%clk 0:02:30]}  Rc8 {[%clk 0:01:28]} 17. Bf3 {[%clk 0:02:29]}  Qe7 {[%clk 0:01:11]} 18. Nxd5 {[%clk 0:02:23]}  Nxd5 {[%clk 0:01:09]} 19. Bxd5 {[%clk 0:02:16]}  Rcd8 {[%clk 0:00:52]} 20. Bxe5 {[%clk 0:01:32]}  Qxe5 {[%clk 0:00:52]} 21. Qd4 {[%clk 0:01:31]}  Qh5 {[%clk 0:00:33]} 22. Qh4 {[%clk 0:01:23]}  Qxh4 {[%clk 0:00:18]} 23. gxh4 {[%clk 0:01:23]}  Bg4 {[%clk 0:00:14]} 24. Rd4 {[%clk 0:01:22]}  Bf5 {[%clk 0:00:11]} 25. Bxb7 {[%clk 0:01:19]}  Rxd4 {[%clk 0:00:10]} 26. exd4 {[%clk 0:01:20]}  Rd8 {[%clk 0:00:10]} 27. d5 {[%clk 0:01:19]}  h6 {[%clk 0:00:08]} 28. f3 {[%clk 0:01:14]}  a5 {[%clk 0:00:05]} 29. Kf2 {[%clk 0:01:14]}  Bd3 {[%clk 0:00:04]} 30. Ke3 {[%clk 0:01:12]}  Bb5 {[%clk 0:00:04]} 31. Rc8 {[%clk 0:01:11]}  Rxc8 {[%clk 0:00:04]} 32. Bxc8 {[%clk 0:01:12]}  Kf8 {[%clk 0:00:04]} 33. Kd4 {[%clk 0:01:13]}  Ke7 {[%clk 0:00:04]} 34. Kc5 {[%clk 0:01:09]}  Be2 {[%clk 0:00:05]} 35. d6+ {[%clk 0:01:09]}  Kd8 {[%clk 0:00:05]} 36. Bb7 {[%clk 0:01:10]}  f5 {[%clk 0:00:04]} 37. f4 {[%clk 0:01:08]}  Bd3 {[%clk 0:00:02]} 38. Bc6 {[%clk 0:01:05]}  Bb1 {[%clk 0:00:02]} 39. a3 {[%clk 0:01:05]}  Ba2 {[%clk 0:00:02]} 40. b4 {[%clk 0:01:05]}  axb4 {[%clk 0:00:03]} 41. axb4 {[%clk 0:01:06]}  Bb3 {[%clk 0:00:03]} 42. b5 {[%clk 0:01:06]} 1-0


[Site "https://www.chess.com"]

[Event "Titled Tuesday Blitz December 13 Early 2022"]
[White "Donskov, Anatoly"]
[Black "Kim, Sergey"]
[WhiteFideId "24143413"]
[BlackFideId "13700570"]
[WhiteElo "2219"]
[BlackElo "2582"]
[Result "0-1"]
[Round "11"]
[TimeControl "180+1"]
[Date "2022.12.14"]
[WhiteClock "0:00:01"]
[BlackClock "0:00:35"]

1. e4 {[%clk 0:03:00]}  e5 {[%clk 0:02:59]} 2. Nf3 {[%clk 0:03:00]}  Nc6 {[%clk 0:03:00]} 3. Bb5 {[%clk 0:03:01]}  a6 {[%clk 0:03:00]} 4. Ba4 {[%clk 0:03:01]}  Nf6 {[%clk 0:03:00]} 5. Qe2 {[%clk 0:03:02]}  b5 {[%clk 0:03:00]} 6. Bb3 {[%clk 0:03:03]}  Bc5 {[%clk 0:03:01]} 7. c3 {[%clk 0:03:03]}  d6 {[%clk 0:03:01]} 8. O-O {[%clk 0:03:03]}  O-O {[%clk 0:02:59]} 9. Rd1 {[%clk 0:03:04]}  Bb6 {[%clk 0:02:53]} 10. d3 {[%clk 0:03:04]}  h6 {[%clk 0:02:52]} 11. Nbd2 {[%clk 0:03:03]}  Nh5 {[%clk 0:02:51]} 12. Nf1 {[%clk 0:03:00]}  Qf6 {[%clk 0:02:50]} 13. h3 {[%clk 0:01:39]}  Be6 {[%clk 0:02:40]} 14. Be3 {[%clk 0:01:38]}  Nf4 {[%clk 0:02:37]} 15. Bxf4 {[%clk 0:01:38]}  Qxf4 {[%clk 0:02:37]} 16. Ne3 {[%clk 0:01:35]}  Ne7 {[%clk 0:02:32]} 17. g3 {[%clk 0:01:25]}  Qf6 {[%clk 0:02:30]} 18. Kg2 {[%clk 0:01:24]}  Ng6 {[%clk 0:02:20]} 19. Nd5 {[%clk 0:01:21]}  Bxd5 {[%clk 0:02:18]} 20. Bxd5 {[%clk 0:01:21]}  Rab8 {[%clk 0:02:18]} 21. a4 {[%clk 0:01:18]}  Ne7 {[%clk 0:02:14]} 22. Bb3 {[%clk 0:01:09]}  Kh7 {[%clk 0:01:55]} 23. axb5 {[%clk 0:01:07]}  axb5 {[%clk 0:01:55]} 24. d4 {[%clk 0:01:04]}  Ng6 {[%clk 0:01:54]} 25. h4 {[%clk 0:00:54]}  Ne7 {[%clk 0:01:33]} 26. dxe5 {[%clk 0:00:33]}  dxe5 {[%clk 0:01:32]} 27. Rd7 {[%clk 0:00:34]}  Rfd8 {[%clk 0:01:16]} 28. Rad1 {[%clk 0:00:33]}  Rf8 {[%clk 0:01:08]} 29. Qd2 {[%clk 0:00:21]}  Bc5 {[%clk 0:01:02]} 30. Qe2 {[%clk 0:00:13]}  Bd6 {[%clk 0:01:00]} 31. g4 {[%clk 0:00:10]}  Ng6 {[%clk 0:00:57]} 32. Qe3 {[%clk 0:00:07]}  Nf4+ {[%clk 0:00:50]} 33. Kg3 {[%clk 0:00:07]}  Qg6 {[%clk 0:00:48]} 34. g5 {[%clk 0:00:05]}  h5 {[%clk 0:00:45]} 35. Nh2 {[%clk 0:00:02]}  b4 {[%clk 0:00:36]} 36. c4 {[%clk 0:00:03]}  Qe6 {[%clk 0:00:35]} 37. R7xd6 {[%clk 0:00:01]}  Qh3# {[%clk 0:00:35]} 0-1


[Site "https://www.chess.com"]

[Event "Titled Tuesday Blitz December 13 Early 2022"]
[White "Fabris, Alberto"]
[Black "Dias, Joao Batista"]
[WhiteFideId "801348"]
[BlackFideId "2108240"]
[WhiteElo "2170"]
[BlackElo "1898"]
[Result "1-0"]
[Round "11"]
[TimeControl "180+1"]
[Date "2022.12.14"]
[WhiteClock "0:00:06"]
[BlackClock "0:00:29"]

1. e4 {[%clk 0:03:00]}  e6 {[%clk 0:02:49]} 2. d4 {[%clk 0:02:59]}  d5 {[%clk 0:02:48]} 3. Nd2 {[%clk 0:02:59]}  dxe4 {[%clk 0:02:48]} 4. Nxe4 {[%clk 0:02:58]}  Nf6 {[%clk 0:02:49]} 5. Ng3 {[%clk 0:02:52]}  Be7 {[%clk 0:02:48]} 6. Nf3 {[%clk 0:02:51]}  O-O {[%clk 0:02:48]} 7. Bd3 {[%clk 0:02:50]}  c5 {[%clk 0:02:48]} 8. O-O {[%clk 0:02:44]}  Nc6 {[%clk 0:02:47]} 9. dxc5 {[%clk 0:02:42]}  Bxc5 {[%clk 0:02:47]} 10. c3 {[%clk 0:02:40]}  Qc7 {[%clk 0:02:44]} 11. Qc2 {[%clk 0:02:37]}  g6 {[%clk 0:02:43]} 12. Bh6 {[%clk 0:02:34]}  Rd8 {[%clk 0:02:41]} 13. Rad1 {[%clk 0:02:32]}  b6 {[%clk 0:02:39]} 14. Ne4 {[%clk 0:02:25]}  Be7 {[%clk 0:02:34]} 15. Bg5 {[%clk 0:02:18]}  Nxe4 {[%clk 0:02:29]} 16. Bxe4 {[%clk 0:02:13]}  Bb7 {[%clk 0:02:29]} 17. Bxe7 {[%clk 0:02:11]}  Nxe7 {[%clk 0:02:28]} 18. Bxb7 {[%clk 0:02:09]}  Qxb7 {[%clk 0:02:28]} 19. Ng5 {[%clk 0:01:59]}  h6 {[%clk 0:02:25]} 20. Ne4 {[%clk 0:01:58]}  Kg7 {[%clk 0:02:24]} 21. Qe2 {[%clk 0:01:51]}  Rd5 {[%clk 0:02:22]} 22. Rxd5 {[%clk 0:01:49]}  Qxd5 {[%clk 0:02:21]} 23. c4 {[%clk 0:01:43]}  Qe5 {[%clk 0:02:21]} 24. Nc3 {[%clk 0:01:32]}  Qxe2 {[%clk 0:02:20]} 25. Nxe2 {[%clk 0:01:32]}  Rd8 {[%clk 0:02:21]} 26. Nc3 {[%clk 0:01:15]}  Rd2 {[%clk 0:02:18]} 27. Rb1 {[%clk 0:01:04]}  a6 {[%clk 0:02:15]} 28. Kf1 {[%clk 0:01:04]}  Nf5 {[%clk 0:02:13]} 29. Ke1 {[%clk 0:01:03]}  Rd4 {[%clk 0:02:11]} 30. b3 {[%clk 0:01:02]}  Rd3 {[%clk 0:02:08]} 31. Na4 {[%clk 0:00:57]}  b5 {[%clk 0:02:05]} 32. cxb5 {[%clk 0:00:58]}  axb5 {[%clk 0:02:05]} 33. Nc5 {[%clk 0:00:58]}  Rc3 {[%clk 0:02:05]} 34. b4 {[%clk 0:00:52]}  Rc2 {[%clk 0:02:02]} 35. a4 {[%clk 0:00:50]}  bxa4 {[%clk 0:01:59]} 36. Nxa4 {[%clk 0:00:51]}  Nd4 {[%clk 0:01:56]} 37. b5 {[%clk 0:00:47]}  Re2+ {[%clk 0:01:52]} 38. Kf1 {[%clk 0:00:45]}  Ra2 {[%clk 0:01:51]} 39. Nc3 {[%clk 0:00:41]}  Rc2 {[%clk 0:01:48]} 40. Ne4 {[%clk 0:00:39]}  f5 {[%clk 0:01:42]} 41. Nd6 {[%clk 0:00:31]}  Kf6 {[%clk 0:01:34]} 42. b6 {[%clk 0:00:30]}  Ke5 {[%clk 0:01:32]} 43. b7 {[%clk 0:00:29]}  Nc6 {[%clk 0:01:29]} 44. Nf7+ {[%clk 0:00:28]}  Kf6 {[%clk 0:01:26]} 45. Nd8 {[%clk 0:00:24]}  Nb8 {[%clk 0:01:24]} 46. Rb6 {[%clk 0:00:23]}  Ke7 {[%clk 0:01:23]} 47. Nxe6 {[%clk 0:00:22]}  g5 {[%clk 0:01:14]} 48. Nd4 {[%clk 0:00:20]}  Rc4 {[%clk 0:01:14]} 49. Nxf5+ {[%clk 0:00:20]}  Kd7 {[%clk 0:01:13]} 50. Nxh6 {[%clk 0:00:19]}  Kc7 {[%clk 0:01:13]} 51. Rb1 {[%clk 0:00:19]}  Nc6 {[%clk 0:01:12]} 52. Nf5 {[%clk 0:00:18]}  Rc5 {[%clk 0:01:07]} 53. Ne3 {[%clk 0:00:18]}  Nb8 {[%clk 0:01:05]} 54. g3 {[%clk 0:00:17]}  Na6 {[%clk 0:00:59]} 55. Kg2 {[%clk 0:00:16]}  Nb8 {[%clk 0:00:55]} 56. h4 {[%clk 0:00:15]}  gxh4 {[%clk 0:00:54]} 57. gxh4 {[%clk 0:00:16]}  Nc6 {[%clk 0:00:54]} 58. Kg3 {[%clk 0:00:16]}  Rc3 {[%clk 0:00:47]} 59. Kg4 {[%clk 0:00:14]}  Ne5+ {[%clk 0:00:44]} 60. Kf5 {[%clk 0:00:13]}  Nd7 {[%clk 0:00:43]} 61. h5 {[%clk 0:00:13]}  Rc5+ {[%clk 0:00:43]} 62. Kg4 {[%clk 0:00:12]}  Ne5+ {[%clk 0:00:42]} 63. Kg3 {[%clk 0:00:11]}  Nd7 {[%clk 0:00:41]} 64. h6 {[%clk 0:00:11]}  Rh5 {[%clk 0:00:40]} 65. Ng4 {[%clk 0:00:11]}  Kb8 {[%clk 0:00:39]} 66. f4 {[%clk 0:00:10]}  Nc5 {[%clk 0:00:38]} 67. f5 {[%clk 0:00:09]}  Nxb7 {[%clk 0:00:38]} 68. f6 {[%clk 0:00:07]}  Kc7 {[%clk 0:00:33]} 69. f7 {[%clk 0:00:07]}  Nd6 {[%clk 0:00:32]} 70. f8=Q {[%clk 0:00:07]}  Nf5+ {[%clk 0:00:32]} 71. Kf4 {[%clk 0:00:06]}  Nd6 {[%clk 0:00:30]} 72. Rc1+ {[%clk 0:00:06]}  Kd7 {[%clk 0:00:29]} 73. Rd1 {[%clk 0:00:06]}  Rf5+ {[%clk 0:00:29]} 74. Qxf5+ {[%clk 0:00:06]} 1-0


[Site "https://www.chess.com"]

[Event "Titled Tuesday Blitz December 13 Early 2022"]
[White "Ghosh, Chanchal Kumer"]
[Black "Shapiro, Daniel"]
[WhiteFideId "10201858"]
[BlackFideId "2001780"]
[WhiteElo "2058"]
[BlackElo "2364"]
[Result "0-1"]
[Round "11"]
[TimeControl "180+1"]
[Date "2022.12.14"]
[WhiteClock "0:00:18"]
[BlackClock "0:00:44"]

1. e4 {[%clk 0:03:00]}  e5 {[%clk 0:03:00]} 2. Nf3 {[%clk 0:03:01]}  Nc6 {[%clk 0:03:00]} 3. Bc4 {[%clk 0:03:01]}  Be7 {[%clk 0:02:59]} 4. c3 {[%clk 0:03:01]}  Nf6 {[%clk 0:02:59]} 5. d4 {[%clk 0:03:01]}  d6 {[%clk 0:02:59]} 6. Nbd2 {[%clk 0:02:56]}  O-O {[%clk 0:02:56]} 7. h3 {[%clk 0:02:53]}  h6 {[%clk 0:02:55]} 8. Bb3 {[%clk 0:02:52]}  a6 {[%clk 0:02:49]} 9. O-O {[%clk 0:02:52]}  Be6 {[%clk 0:02:48]} 10. d5 {[%clk 0:02:51]}  Bxh3 {[%clk 0:02:42]} 11. gxh3 {[%clk 0:02:46]}  Nb8 {[%clk 0:02:43]} 12. Kh2 {[%clk 0:02:43]}  Nh5 {[%clk 0:02:42]} 13. Rg1 {[%clk 0:02:42]}  Nd7 {[%clk 0:02:38]} 14. Nxe5 {[%clk 0:02:32]}  Ndf6 {[%clk 0:02:00]} 15. Ng4 {[%clk 0:02:27]}  Kh8 {[%clk 0:01:55]} 16. Nxf6 {[%clk 0:02:17]}  Nxf6 {[%clk 0:01:55]} 17. Bc2 {[%clk 0:02:15]}  Nd7 {[%clk 0:01:55]} 18. f4 {[%clk 0:02:12]}  Bf6 {[%clk 0:01:54]} 19. Nf3 {[%clk 0:02:11]}  Qe7 {[%clk 0:01:53]} 20. Qd3 {[%clk 0:02:08]}  g6 {[%clk 0:01:53]} 21. b4 {[%clk 0:02:05]}  a5 {[%clk 0:01:53]} 22. Rb1 {[%clk 0:02:03]}  axb4 {[%clk 0:01:52]} 23. cxb4 {[%clk 0:02:04]}  Rxa2 {[%clk 0:01:52]} 24. Rg2 {[%clk 0:02:03]}  Re8 {[%clk 0:01:45]} 25. Bd2 {[%clk 0:01:42]}  Rea8 {[%clk 0:01:30]} 26. Bc3 {[%clk 0:01:39]}  R8a3 {[%clk 0:01:27]} 27. Bxf6+ {[%clk 0:01:20]}  Nxf6 {[%clk 0:01:04]} 28. Qe2 {[%clk 0:00:59]}  Nh5 {[%clk 0:01:00]} 29. Qd2 {[%clk 0:00:55]}  Rxf3 {[%clk 0:00:58]} 30. Rf2 {[%clk 0:00:34]}  Raa3 {[%clk 0:00:51]} 31. Rxf3 {[%clk 0:00:33]}  Rxf3 {[%clk 0:00:51]} 32. f5 {[%clk 0:00:20]}  Qh4 {[%clk 0:00:47]} 33. Qxh6+ {[%clk 0:00:18]}  Kg8 {[%clk 0:00:44]} 0-1


[Site "https://www.chess.com"]

[Event "Titled Tuesday Blitz December 13 Early 2022"]
[White "Harshavardhan G B"]
[Black "Pein, Jonathan"]
[WhiteFideId "25059009"]
[BlackFideId "417092"]
[WhiteElo "2323"]
[BlackElo "2225"]
[Result "1-0"]
[Round "11"]
[TimeControl "180+1"]
[Date "2022.12.13"]
[WhiteClock "0:01:38"]
[BlackClock "0:00:46"]

1. d4 {[%clk 0:02:51]}  d6 {[%clk 0:02:59]} 2. c4 {[%clk 0:02:49]}  Nf6 {[%clk 0:03:00]} 3. Nc3 {[%clk 0:02:49]}  g6 {[%clk 0:03:01]} 4. Nf3 {[%clk 0:02:48]}  Bg7 {[%clk 0:03:01]} 5. e4 {[%clk 0:02:49]}  O-O {[%clk 0:03:02]} 6. Be2 {[%clk 0:02:49]}  e5 {[%clk 0:03:02]} 7. d5 {[%clk 0:02:49]}  h6 {[%clk 0:03:01]} 8. h4 {[%clk 0:02:44]}  Bg4 {[%clk 0:03:00]} 9. Nd2 {[%clk 0:02:44]}  Bxe2 {[%clk 0:03:00]} 10. Qxe2 {[%clk 0:02:45]}  a5 {[%clk 0:02:57]} 11. g4 {[%clk 0:02:44]}  Nfd7 {[%clk 0:02:57]} 12. Nf1 {[%clk 0:02:42]}  Na6 {[%clk 0:02:56]} 13. Ng3 {[%clk 0:02:40]}  Nac5 {[%clk 0:02:56]} 14. Be3 {[%clk 0:02:40]}  c6 {[%clk 0:02:53]} 15. g5 {[%clk 0:02:38]}  h5 {[%clk 0:02:51]} 16. O-O-O {[%clk 0:02:38]}  cxd5 {[%clk 0:02:49]} 17. Nxd5 {[%clk 0:02:35]}  a4 {[%clk 0:02:43]} 18. Kb1 {[%clk 0:02:32]}  Re8 {[%clk 0:02:39]} 19. Nxh5 {[%clk 0:02:26]}  gxh5 {[%clk 0:02:39]} 20. Qxh5 {[%clk 0:02:27]}  Nxe4 {[%clk 0:02:28]} 21. g6 {[%clk 0:02:22]}  fxg6 {[%clk 0:02:11]} 22. Qxg6 {[%clk 0:02:20]}  Nec5 {[%clk 0:01:45]} 23. Rhg1 {[%clk 0:02:16]}  Ne6 {[%clk 0:01:41]} 24. h5 {[%clk 0:02:13]}  Ndf8 {[%clk 0:01:41]} 25. Qg4 {[%clk 0:02:02]}  Kh8 {[%clk 0:01:27]} 26. h6 {[%clk 0:01:57]}  Qd7 {[%clk 0:01:15]} 27. Nf6 {[%clk 0:01:46]}  Qf7 {[%clk 0:00:47]} 28. hxg7+ {[%clk 0:01:44]}  Nxg7 {[%clk 0:00:46]} 29. Qh4+ {[%clk 0:01:39]}  Nh5 {[%clk 0:00:46]} 30. Qxh5+ {[%clk 0:01:38]}  Qxh5 {[%clk 0:00:46]} 31. Rg8# {[%clk 0:01:38]} 1-0


[Site "https://www.chess.com"]

[Event "Titled Tuesday Blitz December 13 Early 2022"]
[White "Iskusnyh, Sergei"]
[Black "Fiedorek, Michal"]
[WhiteFideId "4120027"]
[BlackFideId "1199528"]
[WhiteElo "2492"]
[BlackElo "2201"]
[Result "0-1"]
[Round "11"]
[TimeControl "180+1"]
[Date "2022.12.14"]
[WhiteClock "0:00:16"]
[BlackClock "0:00:57"]

1. d4 {[%clk 0:03:00]}  Nf6 {[%clk 0:03:00]} 2. c4 {[%clk 0:03:00]}  e6 {[%clk 0:03:00]} 3. g3 {[%clk 0:02:59]}  d5 {[%clk 0:03:00]} 4. Bg2 {[%clk 0:03:00]}  Be7 {[%clk 0:03:01]} 5. Nf3 {[%clk 0:03:00]}  O-O {[%clk 0:03:02]} 6. Qc2 {[%clk 0:02:59]}  c6 {[%clk 0:02:59]} 7. O-O {[%clk 0:02:59]}  dxc4 {[%clk 0:03:00]} 8. Qxc4 {[%clk 0:02:58]}  b5 {[%clk 0:03:00]} 9. Qc2 {[%clk 0:02:57]}  Bb7 {[%clk 0:03:00]} 10. Bg5 {[%clk 0:02:57]}  Nbd7 {[%clk 0:03:00]} 11. Nbd2 {[%clk 0:02:56]}  c5 {[%clk 0:02:54]} 12. Bxf6 {[%clk 0:02:46]}  gxf6 {[%clk 0:02:50]} 13. dxc5 {[%clk 0:02:40]}  Nxc5 {[%clk 0:02:51]} 14. Rad1 {[%clk 0:02:26]}  Qb6 {[%clk 0:02:50]} 15. Nh4 {[%clk 0:02:20]}  Rac8 {[%clk 0:02:39]} 16. Bxb7 {[%clk 0:02:18]}  Qxb7 {[%clk 0:02:38]} 17. Qb1 {[%clk 0:02:02]}  Rfd8 {[%clk 0:02:35]} 18. Ndf3 {[%clk 0:01:59]}  Qe4 {[%clk 0:02:30]} 19. Rxd8+ {[%clk 0:01:46]}  Rxd8 {[%clk 0:02:29]} 20. Qxe4 {[%clk 0:01:42]}  Nxe4 {[%clk 0:02:28]} 21. Rc1 {[%clk 0:01:41]}  f5 {[%clk 0:02:22]} 22. Ng2 {[%clk 0:01:31]}  Bf6 {[%clk 0:02:21]} 23. Nf4 {[%clk 0:01:12]}  Bxb2 {[%clk 0:02:14]} 24. Rc7 {[%clk 0:01:12]}  a5 {[%clk 0:02:01]} 25. Rb7 {[%clk 0:01:11]}  b4 {[%clk 0:01:57]} 26. h4 {[%clk 0:01:07]}  Rd1+ {[%clk 0:01:49]} 27. Kg2 {[%clk 0:01:06]}  Ra1 {[%clk 0:01:50]} 28. Ng5 {[%clk 0:01:04]}  Nxg5 {[%clk 0:01:48]} 29. hxg5 {[%clk 0:01:04]}  Kf8 {[%clk 0:01:40]} 30. Nd3 {[%clk 0:00:37]}  Rxa2 {[%clk 0:01:37]} 31. Nc5 {[%clk 0:00:37]}  Bd4 {[%clk 0:01:30]} 32. Nd7+ {[%clk 0:00:31]}  Kg7 {[%clk 0:01:27]} 33. Kf3 {[%clk 0:00:27]}  Rb2 {[%clk 0:01:27]} 34. e3 {[%clk 0:00:27]}  Bc3 {[%clk 0:01:26]} 35. Nc5 {[%clk 0:00:25]}  Kg6 {[%clk 0:01:24]} 36. Rb8 {[%clk 0:00:21]}  Kxg5 {[%clk 0:01:11]} 37. Nd3 {[%clk 0:00:18]}  Kf6 {[%clk 0:01:10]} 38. Nxb2 {[%clk 0:00:18]}  Bxb2 {[%clk 0:01:10]} 39. Ke2 {[%clk 0:00:18]}  Bc3 {[%clk 0:01:07]} 40. Kd3 {[%clk 0:00:16]}  a4 {[%clk 0:01:07]} 41. f4 {[%clk 0:00:17]}  a3 {[%clk 0:01:05]} 42. Ra8 {[%clk 0:00:17]}  Kg6 {[%clk 0:01:03]} 43. Ra7 {[%clk 0:00:16]}  Kh5 {[%clk 0:01:03]} 44. Kc2 {[%clk 0:00:16]}  Kg4 {[%clk 0:01:00]} 45. Kb3 {[%clk 0:00:16]}  Kxg3 {[%clk 0:00:58]} 46. Rxf7 {[%clk 0:00:16]}  Kf3 {[%clk 0:00:59]} 47. Re7 {[%clk 0:00:15]}  Kxe3 {[%clk 0:00:59]} 48. Rxe6+ {[%clk 0:00:16]}  Kxf4 {[%clk 0:00:59]} 49. Rh6 {[%clk 0:00:17]}  Kf3 {[%clk 0:00:56]} 50. Rxh7 {[%clk 0:00:18]}  f4 {[%clk 0:00:56]} 51. Rf7 {[%clk 0:00:17]}  Kg3 {[%clk 0:00:56]} 52. Rg7+ {[%clk 0:00:18]}  Kf2 {[%clk 0:00:57]} 53. Rg8 {[%clk 0:00:16]}  f3 {[%clk 0:00:57]} 0-1


[Site "https://www.chess.com"]

[Event "Titled Tuesday Blitz December 13 Early 2022"]
[White "Jobava, Baadur"]
[Black "Svane, Rasmus"]
[WhiteFideId "13601520"]
[BlackFideId "4657101"]
[WhiteElo "2582"]
[BlackElo "2674"]
[Result "1-0"]
[Round "11"]
[TimeControl "180+1"]
[Date "2022.12.13"]
[WhiteClock "0:00:12"]
[BlackClock "0:00:02"]

1. d4 {[%clk 0:02:54]}  Nf6 {[%clk 0:03:00]} 2. Bg5 {[%clk 0:02:54]}  d5 {[%clk 0:03:00]} 3. e3 {[%clk 0:02:54]}  c5 {[%clk 0:02:59]} 4. Bxf6 {[%clk 0:02:54]}  gxf6 {[%clk 0:03:00]} 5. dxc5 {[%clk 0:02:54]}  e6 {[%clk 0:02:59]} 6. c4 {[%clk 0:02:53]}  dxc4 {[%clk 0:03:00]} 7. Nd2 {[%clk 0:02:52]}  c3 {[%clk 0:03:01]} 8. bxc3 {[%clk 0:02:53]}  Nd7 {[%clk 0:03:01]} 9. c6 {[%clk 0:02:52]}  bxc6 {[%clk 0:03:02]} 10. Ngf3 {[%clk 0:02:48]}  Bg7 {[%clk 0:03:02]} 11. g3 {[%clk 0:02:44]}  O-O {[%clk 0:03:01]} 12. Bg2 {[%clk 0:02:44]}  Ba6 {[%clk 0:02:58]} 13. c4 {[%clk 0:02:40]}  f5 {[%clk 0:02:57]} 14. Rb1 {[%clk 0:02:39]}  Nc5 {[%clk 0:02:40]} 15. O-O {[%clk 0:02:35]}  Qc7 {[%clk 0:02:34]} 16. Nd4 {[%clk 0:02:31]}  Rad8 {[%clk 0:02:23]} 17. Nxc6 {[%clk 0:02:17]}  Rd6 {[%clk 0:02:12]} 18. Nd4 {[%clk 0:02:06]}  Bxd4 {[%clk 0:02:09]} 19. exd4 {[%clk 0:02:07]}  Rxd4 {[%clk 0:02:10]} 20. Qc1 {[%clk 0:02:04]}  Rfd8 {[%clk 0:02:08]} 21. Nb3 {[%clk 0:02:04]}  Nxb3 {[%clk 0:01:54]} 22. Qg5+ {[%clk 0:02:01]}  Kf8 {[%clk 0:01:52]} 23. axb3 {[%clk 0:01:59]}  Bb7 {[%clk 0:01:42]} 24. Qh6+ {[%clk 0:01:50]}  Kg8 {[%clk 0:01:42]} 25. Qg5+ {[%clk 0:01:51]}  Kf8 {[%clk 0:01:42]} 26. Bxb7 {[%clk 0:01:47]}  Qxb7 {[%clk 0:01:43]} 27. c5 {[%clk 0:01:40]}  Qc6 {[%clk 0:01:33]} 28. Rbc1 {[%clk 0:01:39]}  a5 {[%clk 0:01:33]} 29. Qh6+ {[%clk 0:01:38]}  Kg8 {[%clk 0:01:33]} 30. Qg5+ {[%clk 0:01:38]}  Kf8 {[%clk 0:01:34]} 31. h3 {[%clk 0:01:36]}  f4 {[%clk 0:01:31]} 32. g4 {[%clk 0:01:36]}  R8d5 {[%clk 0:01:26]} 33. Qf6 {[%clk 0:01:36]}  h5 {[%clk 0:01:22]} 34. Rfe1 {[%clk 0:01:19]}  hxg4 {[%clk 0:01:19]} 35. hxg4 {[%clk 0:01:20]}  Rb4 {[%clk 0:01:02]} 36. Red1 {[%clk 0:01:12]}  Qd7 {[%clk 0:00:22]} 37. Rxd5 {[%clk 0:01:05]}  exd5 {[%clk 0:00:23]} 38. Qh6+ {[%clk 0:00:46]}  Kg8 {[%clk 0:00:20]} 39. Qg5+ {[%clk 0:00:46]}  Kf8 {[%clk 0:00:20]} 40. c6 {[%clk 0:00:46]}  Qc7 {[%clk 0:00:18]} 41. Qxd5 {[%clk 0:00:37]}  f3 {[%clk 0:00:16]} 42. Qxf3 {[%clk 0:00:35]}  Rd4 {[%clk 0:00:11]} 43. Kg2 {[%clk 0:00:33]}  Rd8 {[%clk 0:00:06]} 44. Rc4 {[%clk 0:00:33]}  Kg8 {[%clk 0:00:06]} 45. Qf4 {[%clk 0:00:31]}  Qe7 {[%clk 0:00:04]} 46. c7 {[%clk 0:00:30]}  Rc8 {[%clk 0:00:04]} 47. Rc6 {[%clk 0:00:19]}  Qd7 {[%clk 0:00:04]} 48. Rc5 {[%clk 0:00:16]}  Qe6 {[%clk 0:00:04]} 49. Qg5+ {[%clk 0:00:16]}  Kf8 {[%clk 0:00:05]} 50. Qd8+ {[%clk 0:00:16]}  Kg7 {[%clk 0:00:05]} 51. Qg5+ {[%clk 0:00:15]}  Kf8 {[%clk 0:00:05]} 52. Qd8+ {[%clk 0:00:15]}  Kg7 {[%clk 0:00:05]} 53. Qd4+ {[%clk 0:00:16]}  f6 {[%clk 0:00:05]} 54. g5 {[%clk 0:00:15]}  Kf7 {[%clk 0:00:05]} 55. Qxf6+ {[%clk 0:00:14]}  Qxf6 {[%clk 0:00:05]} 56. gxf6 {[%clk 0:00:15]}  Kxf6 {[%clk 0:00:06]} 57. f4 {[%clk 0:00:14]}  Ke6 {[%clk 0:00:06]} 58. Kf3 {[%clk 0:00:14]}  Kd6 {[%clk 0:00:03]} 59. Rc4 {[%clk 0:00:15]}  Kd5 {[%clk 0:00:02]} 60. Rc1 {[%clk 0:00:11]}  Kd6 {[%clk 0:00:03]} 61. Ke4 {[%clk 0:00:10]}  Re8+ {[%clk 0:00:02]} 62. Kd4 {[%clk 0:00:10]}  Rc8 {[%clk 0:00:02]} 63. f5 {[%clk 0:00:11]}  Kd7 {[%clk 0:00:03]} 64. Kd5 {[%clk 0:00:11]}  Ke7 {[%clk 0:00:01]} 65. Kc6 {[%clk 0:00:11]}  Re8 {[%clk 0:00:01]} 66. Re1+ {[%clk 0:00:11]}  Kf7 {[%clk 0:00:01]} 67. Rxe8 {[%clk 0:00:12]}  Kf6 {[%clk 0:00:02]} 68. c8=Q {[%clk 0:00:12]} 1-0


[Site "https://www.chess.com"]